[Event "7th Washington Open 2018"]
[Site "Rockville"]
[Date "2018.08.11"]
[Round "2.2"]
[White "Baryshpolets, Andrey"]
[Black "Henderson de la Fuente, Lance"]
[Result "1/2-1/2"]
[ECO "E20"]
[WhiteElo "2609"]
[BlackElo "2485"]
[Annotator "ChessBase"]
[PlyCount "142"]
[EventDate "2018.08.11"]
[EventType "swiss"]
[EventCountry "USA"]
[SourceTitle "playchess.com"]
[Source "ChessBase"]
[SourceQuality "1"]
[TimeControl "40/5400+30:1200+30"]

1. d4 {[%emt 0:02:28]} Nf6 {[%emt 0:00:00]} 2. c4 {[%emt 0:00:08]} e6 {[%emt 0:00:00]} 3. Nc3 {[%emt 0:00:20]} Bb4 {[%emt 0:00:04]} 4. g3 {[%emt 0:00:13]} d5 {[%emt 0:00:40]} 5. Bg2 {[%emt 0:00:40]} O-O {[%emt 0:00:25]} 6. Nf3 {[%emt 0:00:12]} dxc4 {[%emt 0:00:59]} 7. O-O {[%emt 0:00:16]} Nc6 {[%emt 0:00:21]} 8. Qa4 {[%emt 0:00:29]} Bd7 {[%emt 0:07:48]} 9. Rd1 {[%emt 0:34:08]} Bxc3 {[%emt 0:12:03]} 10. bxc3 {[%emt 0:00:45]} Nxd4 {[%emt 0:00:21]} 11. Qxc4 {[%emt 0:00:29]} Nxf3+ {[%emt 0:01:45]} 12. Bxf3 {[%emt 0:00:20]} Qc8 {[%emt 0:01:24]} 13. Qc5 {[%emt 0:12:52]} Re8 {[%emt 0:09:20]} 14. Bg5 {[%emt 0:09:38]} Nd5 {[%emt 0:01:31]} 15. e4 {[%emt 0:06:25]} Nb6 {[%emt 0:03:39]} 16. e5 {[%emt 0:00:47]} Bc6 {[%emt 0:05:16]} 17. Bxc6 {[%emt 0:02:40]} bxc6 {[%emt 0:00:01]} 18. Qxc6 {[%emt 0:02:16]} h6 {[%emt 0:03:12]} 19. Be3 {[%emt 0:01:15]} Nd5 {[%emt 0:07:29]} 20. Bd4 {[%emt 0:01:02]} a5 {[%emt 0:02:18]} 21. c4 {[%emt 0:04:17]} Nb4 {[%emt 0:02:59]} 22. Qa4 {[%emt 0:05:08]} c5 {[%emt 0:05:03]} 23. Bc3 {[%emt 0:02:59]} Qc6 {[%emt 0:02:40]} 24. Qxc6 {[%emt 0:00:28]} Nxc6 {[%emt 0:00:02]} 25. Rd6 {[%emt 0:02:09]} Rec8 {[%emt 0:00:26]} 26. Rb1 {[%emt 0:01:05]} Nb4 {[%emt 0:03:09]} 27. a3 {[%emt 0:01:45]} Nc2 {[%emt 0:00:48]} 28. Rc1 {[%emt 0:00:25]} Nd4 {[%emt 0:00:48]} 29. Bxd4 {[%emt 0:01:08]} cxd4 {[%emt 0:00:06]} 30. c5 {[%emt 0:01:25]} Kf8 {[%emt 0:02:53]} 31. Rxd4 {[%emt 0:01:14]} Rab8 {[%emt 0:01:53]} 32. a4 {[%emt 0:03:15]} Ke8 {[%emt 0:10:27]} 33. Kf1 {[%emt 0:00:44]} Rc7 {[%emt 0:04:10]} 34. c6 {[%emt 0:02:23]} Rb6 {[%emt 0:02:06]} 35. Rdc4 {[%emt 0:00:07]} Ke7 {[%emt 0:04:08]} 36. Ke2 {[%emt 0:00:21]} f6 {[%emt 0:00:27]} 37. f4 {[%emt 0:01:11]} Kf7 {[%emt 0:05:44]} 38. Ke3 {[%emt 0:00:36]} fxe5 {[%emt 0:01:30]} 39. fxe5 {[%emt 0:00:04]} h5 {[%emt 0:00:27]} 40. Rc5 {[%emt 0:01:16]} Ra6 {[%emt 0:00:58]} 41. Kd4 {[%emt 0:09:08]} Kg6 {[%emt 0:00:32]} 42. h3 {[%emt 0:03:37]} Kf5 {[%emt 0:00:28]} 43. R1c3 {[%emt 0:01:10]} Kg6 {[%emt 0:01:43]} 44. Rb5 {[%emt 0:01:54]} Raxc6 {[%emt 0:02:15]} 45. Rxc6 {[%emt 0:00:11]} Rxc6 {[%emt 0:00:04]} 46. Rxa5 {[%emt 0:00:11]} Rc1 {[%emt 0:01:03]} 47. Rc5 {[%emt 0:01:38]} Ra1 {[%emt 0:00:37]} 48. a5 {[%emt 0:03:37]} Ra3 {[%emt 0:03:15]} 49. Kc4 {[%emt 0:00:28]} Rxg3 {[%emt 0:00:48]} 50. a6 {[%emt 0:00:21]} Ra3 {[%emt 0:00:38]} 51. Kb5 {[%emt 0:00:17]} Rxh3 {[%emt 0:03:04]} 52. Kb6 {[%emt 0:02:56]} Rf3 {[%emt 0:02:30]} 53. a7 {[%emt 0:00:10]} Rf8 {[%emt 0:00:04]} 54. Kb7 {[%emt 0:01:18]} h4 {[%emt 0:01:30]} 55. Rc8 {[%emt 0:00:22]} Rf7+ {[%emt 0:00:01]} 56. Rc7 {[%emt 0:00:07]} Rf8 {[%emt 0:00:08]} 57. Rc4 {[%emt 0:00:39]} Kf5 {[%emt 0:07:23]} 58. Rc8 {[%emt 0:00:13]} Rf7+ {[%emt 0:00:02]} 59. Rc7 {[%emt 0:00:06]} Rf8 {[%emt 0:00:05]} 60. Rc8 {[%emt 0:00:21]} Rf7+ {[%emt 0:00:04]} 61. Rc7 {[%emt 0:00:08]} Rf8 {[%emt 0:00:17]} 62. Rxg7 {[%emt 0:00:11]} Kxe5 {[%emt 0:00:30]} 63. Rg4 {[%emt 0:01:00]} Kd5 {[%emt 0:01:20]} 64. Rxh4 {[%emt 0:01:35]} e5 {[%emt 0:00:07]} 65. Ra4 {[%emt 0:00:35]} e4 {[%emt 0:00:21]} 66. a8=Q {[%emt 0:00:10]} Rxa8 {[%emt 0:00:05]} 67. Rxa8 {[%emt 0:00:04]} e3 {[%emt 0:00:05]} 68. Kb6 {[%emt 0:01:12]} Kd4 {[%emt 0:00:35]} 69. Re8 {[%emt 0:00:29]} Kd3 {[%emt 0:00:11]} 70. Kc5 {[%emt 0:00:06]} e2 {[%emt 0:00:07]} 71. Rxe2 {[%emt 0:00:15]} Kxe2 {[%emt 0:00:05]} 1/2-1/2

[Event "7th Washington Open 2018"]
[Site "Rockville"]
[Date "2018.08.11"]
[Round "2.3"]
[White "Vazquez, Guillermo"]
[Black "Stukopin, Andrey"]
[Result "1/2-1/2"]
[ECO "D30"]
[WhiteElo "2443"]
[BlackElo "2598"]
[Annotator "ChessBase"]
[PlyCount "29"]
[EventDate "2018.08.11"]
[EventType "swiss"]
[EventCountry "USA"]
[SourceTitle "playchess.com"]
[Source "ChessBase"]
[SourceQuality "1"]
[TimeControl "40/5400+30:1200+30"]

1. d4 {[%emt 0:00:00]} d5 {[%emt 0:00:00]} 2. c4 {[%emt 0:00:00]} c6 {[%emt 0:00:00]} 3. Nf3 {[%emt 0:01:04]} Nf6 {[%emt 0:00:00]} 4. e3 {[%emt 0:00:33]} e6 {[%emt 0:00:00]} 5. b3 {[%emt 0:01:05]} Ne4 {[%emt 0:00:51]} 6. Bd3 {[%emt 0:01:45]} f5 {[%emt 0:00:17]} 7. O-O {[%emt 0:00:26]} Bd6 {[%emt 0:00:07]} 8. Bb2 {[%emt 0:04:55]} Nd7 {[%emt 0:02:46]} 9. Nbd2 {[%emt 0:03:42]} b6 {[%emt 0:11:56]} 10. cxd5 {[%emt 0:04:17]} cxd5 {[%emt 0:03:16]} 11. Ne5 {[%emt 0:06:57]} O-O {[%emt 0:13:58]} 12. Rc1 {[%emt 0:15:46]} Nxe5 {[%emt 0:03:54]} 13. dxe5 {[%emt 0:01:52]} Bc5 {[%emt 0:04:15]} 14. Nf3 {[%emt 0:08:34]} a5 {[%emt 0:00:19]} 15. Nd4 {[%emt 0:06:33]} 1/2-1/2

[Event "7th Washington Open 2018"]
[Site "Rockville"]
[Date "2018.08.11"]
[Round "2.4"]
[White "Dragun, Kamil"]
[Black "Jacobson, Brandon"]
[Result "1/2-1/2"]
[ECO "B31"]
[WhiteElo "2594"]
[BlackElo "2472"]
[Annotator "ChessBase"]
[PlyCount "53"]
[EventDate "2018.08.11"]
[EventType "swiss"]
[EventCountry "USA"]
[SourceTitle "playchess.com"]
[Source "ChessBase"]
[SourceQuality "1"]
[TimeControl "40/5400+30:1200+30"]

1. e4 {[%emt 0:05:02]} c5 {[%emt 0:00:00]} 2. Nf3 {[%emt 0:00:06]} Nc6 {[%emt 0:00:07]} 3. Bb5 {[%emt 0:01:14]} g6 {[%emt 0:00:12]} 4. O-O {[%emt 0:04:05]} Bg7 {[%emt 0:00:11]} 5. Re1 {[%emt 0:00:26]} Nf6 {[%emt 0:00:39]} 6. e5 {[%emt 0:00:50]} Nd5 {[%emt 0:00:15]} 7. Nc3 {[%emt 0:00:37]} Nc7 {[%emt 0:00:17]} 8. Bxc6 {[%emt 0:00:40]} dxc6 {[%emt 0:00:07]} 9. Ne4 {[%emt 0:00:12]} b6 {[%emt 0:00:46]} 10. Nf6+ {[%emt 0:00:27]} Kf8 {[%emt 0:00:10]} 11. Ne4 {[%emt 0:00:07]} Bg4 {[%emt 0:00:16]} 12. d3 {[%emt 0:12:38]} Ne6 {[%emt 0:00:12]} 13. Neg5 {[%emt 0:12:16]} Nxg5 {[%emt 0:15:43]} 14. Bxg5 {[%emt 0:01:06]} Qd5 {[%emt 0:00:05]} 15. Re4 {[%emt 0:00:10]} Bf5 {[%emt 0:00:54]} 16. Re3 {[%emt 0:04:35]} Bg4 {[%emt 0:26:30]} 17. Bf4 {[%emt 0:05:19]} Bxf3 {[%emt 0:00:40]} 18. Qxf3 {[%emt 0:00:07]} Qxf3 {[%emt 0:00:05]} 19. Rxf3 {[%emt 0:00:05]} f5 {[%emt 0:00:05]} 20. exf6 {[%emt 0:12:40]} exf6 {[%emt 0:00:08]} 21. Re1 {[%emt 0:00:16]} Kf7 {[%emt 0:00:43]} 22. Rfe3 {[%emt 0:00:29]} Rhe8 {[%emt 0:00:37]} 23. Rxe8 {[%emt 0:00:33]} Rxe8 {[%emt 0:00:02]} 24. Rxe8 {[%emt 0:00:06]} Kxe8 {[%emt 0:00:03]} 25. a4 {[%emt 0:00:13]} Kd7 {[%emt 0:11:55]} 26. b3 {[%emt 0:00:33]} Bf8 {[%emt 0:01:25]} 27. Kf1 {[%emt 0:00:37]} 1/2-1/2

[Event "7th Washington Open 2018"]
[Site "Rockville"]
[Date "2018.08.11"]
[Round "2.5"]
[White "Postny, Evgeny"]
[Black "Balakrishnan, Praveen"]
[Result "1/2-1/2"]
[ECO "E06"]
[WhiteElo "2586"]
[BlackElo "2417"]
[Annotator "ChessBase"]
[PlyCount "42"]
[EventDate "2018.08.11"]
[EventType "swiss"]
[EventCountry "USA"]
[SourceTitle "playchess.com"]
[Source "ChessBase"]
[SourceQuality "1"]
[TimeControl "40/5400+30:1200+30"]

1. d4 {[%emt 0:01:09]} d5 {[%emt 0:00:00]} 2. c4 {[%emt 0:00:09]} e6 {[%emt 0:00:00]} 3. Nf3 {[%emt 0:00:25]} Nf6 {[%emt 0:00:00]} 4. Nc3 {[%emt 0:00:50]} Be7 {[%emt 0:00:02]} 5. g3 {[%emt 0:00:07]} O-O {[%emt 0:00:33]} 6. Bg2 {[%emt 0:00:05]} dxc4 {[%emt 0:02:22]} 7. Ne5 {[%emt 0:00:37]} c5 {[%emt 0:05:28]} 8. dxc5 {[%emt 0:00:30]} Qxd1+ {[%emt 0:00:42]} 9. Nxd1 {[%emt 0:00:07]} Bxc5 {[%emt 0:02:49]} 10. O-O {[%emt 0:00:25]} Nd5 {[%emt 0:11:22]} 11. Nxc4 {[%emt 0:02:12]} Nc6 {[%emt 0:04:07]} 12. Nc3 {[%emt 0:18:06]} Nd4 {[%emt 0:12:27]} 13. Nxd5 {[%emt 0:10:33]} Nxe2+ {[%emt 0:03:24]} 14. Kh1 {[%emt 0:00:07]} exd5 {[%emt 0:00:06]} 15. Bxd5 {[%emt 0:00:17]} Rd8 {[%emt 0:15:02]} 16. Bg2 {[%emt 0:00:47]} Be6 {[%emt 0:09:06]} 17. Be3 {[%emt 0:01:08]} Rac8 {[%emt 0:06:32]} 18. Bxc5 {[%emt 0:04:51]} Rxc5 {[%emt 0:00:43]} 19. Rfd1 {[%emt 0:00:43]} Rxd1+ {[%emt 0:04:39]} 20. Rxd1 {[%emt 0:01:53]} Kf8 {[%emt 0:07:19]} 21. Ne3 {[%emt 0:02:07]} Rc1 {[%emt 0:00:31]} 1/2-1/2

[Event "7th Washington Open 2018"]
[Site "Rockville"]
[Date "2018.08.11"]
[Round "2.6"]
[White "Lee, Michael"]
[Black "Azarov, Sergei Nikolaevich"]
[Result "0-1"]
[ECO "D25"]
[WhiteElo "2408"]
[BlackElo "2574"]
[Annotator "ChessBase"]
[PlyCount "82"]
[EventDate "2018.08.11"]
[EventType "swiss"]
[EventCountry "USA"]
[SourceTitle "playchess.com"]
[Source "ChessBase"]
[SourceQuality "1"]
[TimeControl "40/5400+30:1200+30"]

1. Nf3 {[%emt 0:00:00]} d5 {[%emt 0:00:27]} 2. d4 {[%emt 0:00:00]} Nf6 {[%emt 0:00:22]} 3. c4 {[%emt 0:00:05]} dxc4 {[%emt 0:01:02]} 4. e3 {[%emt 0:00:07]} b5 {[%emt 0:00:26]} 5. a4 {[%emt 0:01:00]} b4 {[%emt 0:00:12]} 6. Nbd2 {[%emt 0:01:18]} c3 {[%emt 0:01:45]} 7. bxc3 {[%emt 0:00:34]} bxc3 {[%emt 0:00:08]} 8. Nb1 {[%emt 0:00:30]} e6 {[%emt 0:00:35]} 9. Nxc3 {[%emt 0:00:45]} Bb4 {[%emt 0:00:55]} 10. Qb3 {[%emt 0:01:20]} a5 {[%emt 0:04:38]} 11. Ba3 {[%emt 0:03:14]} Nd5 {[%emt 0:07:18]} 12. Bxb4 {[%emt 0:03:12]} Nxb4 {[%emt 0:00:08]} 13. Bb5+ {[%emt 0:11:58]} c6 {[%emt 0:06:05]} 14. Bc4 {[%emt 0:03:22]} O-O {[%emt 0:12:39]} 15. O-O {[%emt 0:00:08]} Nd7 {[%emt 0:00:20]} 16. Rfd1 {[%emt 0:10:35]} Bb7 {[%emt 0:01:44]} 17. e4 {[%emt 0:04:11]} Qe7 {[%emt 0:03:26]} 18. e5 {[%emt 0:09:42]} Rab8 {[%emt 0:01:57]} 19. Rac1 {[%emt 0:11:53]} c5 {[%emt 0:08:46]} 20. d5 {[%emt 0:06:10]} Nxe5 {[%emt 0:01:12]} 21. Nxe5 {[%emt 0:04:51]} exd5 {[%emt 0:00:07]} 22. Bxd5 {[%emt 0:09:58]} Qxe5 {[%emt 0:00:24]} 23. Bxb7 {[%emt 0:00:14]} Rxb7 {[%emt 0:00:08]} 24. Qc4 {[%emt 0:00:10]} Re7 {[%emt 0:12:01]} 25. Nd5 {[%emt 0:05:28]} Re6 {[%emt 0:04:44]} 26. Ne3 {[%emt 0:02:27]} Rc8 {[%emt 0:11:25]} 27. Rd7 {[%emt 0:01:37]} Re7 {[%emt 0:03:17]} 28. Rd2 {[%emt 0:02:47]} h6 {[%emt 0:00:31]} 29. h3 {[%emt 0:01:34]} Qg5 {[%emt 0:04:57]} 30. Rcd1 {[%emt 0:00:33]} Rce8 {[%emt 0:00:45]} 31. Qb5 {[%emt 0:02:00]} Re6 {[%emt 0:00:43]} 32. Qxa5 {[%emt 0:02:33]} Nc6 {[%emt 0:00:07]} 33. Qc3 {[%emt 0:00:45]} Nd4 {[%emt 0:00:21]} 34. Kh1 {[%emt 0:00:45]} f5 {[%emt 0:02:35]} 35. Qxc5 {[%emt 0:01:06]} Nb3 {[%emt 0:00:11]} 36. Qd5 {[%emt 0:00:37]} Nxd2 {[%emt 0:00:57]} 37. Rxd2 {[%emt 0:00:10]} Kh8 {[%emt 0:02:43]} 38. Qf3 {[%emt 0:00:47]} f4 {[%emt 0:01:26]} 39. Nd5 {[%emt 0:00:02]} Rd6 {[%emt 0:03:09]} 40. Rd3 {[%emt 0:00:48]} Rf8 {[%emt 0:04:12]} 41. Qe4 {[%emt 0:02:58]} f3 {[%emt 0:04:38]} 0-1

[Event "7th Washington Open 2018"]
[Site "Rockville"]
[Date "2018.08.11"]
[Round "2.7"]
[White "Gabuzyan, Hovhannes"]
[Black "Wang, Kevin"]
[Result "1-0"]
[ECO "C00"]
[WhiteElo "2556"]
[BlackElo "2414"]
[Annotator "ChessBase"]
[PlyCount "73"]
[EventDate "2018.08.11"]
[EventType "swiss"]
[EventCountry "USA"]
[SourceTitle "playchess.com"]
[Source "ChessBase"]
[SourceQuality "1"]
[TimeControl "40/5400+30:1200+30"]

1. Nf3 {[%emt 0:06:25]} d5 {[%emt 0:00:02]} 2. g3 {[%emt 0:00:04]} Nf6 {[%emt 0:00:38]} 3. Bg2 {[%emt 0:00:04]} e6 {[%emt 0:00:44]} 4. O-O {[%emt 0:00:14]} Be7 {[%emt 0:04:47]} 5. d3 {[%emt 0:00:07]} O-O {[%emt 0:01:34]} 6. Nbd2 {[%emt 0:00:03]} c5 {[%emt 0:01:05]} 7. Re1 {[%emt 0:00:03]} Nc6 {[%emt 0:04:30]} 8. e4 {[%emt 0:00:05]} b5 {[%emt 0:01:06]} 9. a4 {[%emt 0:00:08]} b4 {[%emt 0:01:59]} 10. exd5 {[%emt 0:02:34]} exd5 {[%emt 0:00:51]} 11. d4 {[%emt 0:00:04]} Bf5 {[%emt 0:03:43]} 12. dxc5 {[%emt 0:00:41]} Bxc5 {[%emt 0:02:08]} 13. Nb3 {[%emt 0:02:38]} Bb6 {[%emt 0:01:19]} 14. Be3 {[%emt 0:01:46]} Rc8 {[%emt 0:04:03]} 15. Nfd4 {[%emt 0:05:56]} Nxd4 {[%emt 0:05:20]} 16. Nxd4 {[%emt 0:00:05]} Be4 {[%emt 0:01:57]} 17. a5 {[%emt 0:00:13]} Bxd4 {[%emt 0:16:50]} 18. Qxd4 {[%emt 0:00:28]} a6 {[%emt 0:06:31]} 19. Qxb4 {[%emt 0:01:55]} Bxg2 {[%emt 0:03:45]} 20. Kxg2 {[%emt 0:00:27]} Rxc2 {[%emt 0:00:30]} 21. Rac1 {[%emt 0:00:10]} Rc4 {[%emt 0:01:53]} 22. Qb6 {[%emt 0:04:42]} Qa8 {[%emt 0:01:09]} 23. Qa7 {[%emt 0:01:06]} Qc6 {[%emt 0:04:24]} 24. b3 {[%emt 0:00:26]} Rc3 {[%emt 0:11:24]} 25. Qd4 {[%emt 0:01:35]} Rc2 {[%emt 0:03:35]} 26. Qb6 {[%emt 0:02:36]} Qc3 {[%emt 0:03:17]} 27. Bd4 {[%emt 0:00:34]} Qd2 {[%emt 0:01:52]} 28. Rcd1 {[%emt 0:01:47]} Qg5 {[%emt 0:00:22]} 29. Qxa6 {[%emt 0:00:40]} Ne4 {[%emt 0:00:52]} 30. Qd3 {[%emt 0:01:47]} Ra2 {[%emt 0:01:01]} 31. b4 {[%emt 0:00:20]} Rb8 {[%emt 0:00:37]} 32. Be3 {[%emt 0:03:04]} Qf6 {[%emt 0:00:48]} 33. Qxd5 {[%emt 0:01:14]} Nc3 {[%emt 0:03:58]} 34. Qd6 {[%emt 0:00:19]} Qxd6 {[%emt 0:00:51]} 35. Rxd6 {[%emt 0:00:05]} h6 {[%emt 0:00:19]} 36. Rc1 {[%emt 0:00:48]} Na4 {[%emt 0:01:08]} 37. a6 {[%emt 0:00:11]} 1-0

[Event "7th Washington Open 2018"]
[Site "Rockville"]
[Date "2018.08.11"]
[Round "2.8"]
[White "Brodsky, David"]
[Black "Becerra Rivero, Julio"]
[Result "1/2-1/2"]
[ECO "B38"]
[WhiteElo "2402"]
[BlackElo "2529"]
[Annotator "ChessBase"]
[PlyCount "118"]
[EventDate "2018.08.11"]
[EventType "swiss"]
[EventCountry "USA"]
[SourceTitle "playchess.com"]
[Source "ChessBase"]
[SourceQuality "1"]
[TimeControl "40/5400+30:1200+30"]

1. e4 {[%emt 0:00:00]} c5 {[%emt 0:02:53]} 2. Nf3 {[%emt 0:00:00]} Nc6 {[%emt 0:00:08]} 3. d4 {[%emt 0:00:07]} cxd4 {[%emt 0:00:05]} 4. Nxd4 {[%emt 0:00:03]} g6 {[%emt 0:00:17]} 5. c4 {[%emt 0:00:21]} Bg7 {[%emt 0:00:29]} 6. Be3 {[%emt 0:00:15]} Nf6 {[%emt 0:00:15]} 7. Nc3 {[%emt 0:00:07]} d6 {[%emt 0:00:16]} 8. Be2 {[%emt 0:00:15]} O-O {[%emt 0:00:22]} 9. O-O {[%emt 0:00:05]} Bd7 {[%emt 0:00:22]} 10. Nb3 {[%emt 0:04:37]} a5 {[%emt 0:02:49]} 11. Rc1 {[%emt 0:11:48]} a4 {[%emt 0:01:52]} 12. Na1 {[%emt 0:04:44]} a3 {[%emt 0:04:55]} 13. b3 {[%emt 0:01:12]} Qa5 {[%emt 0:00:59]} 14. Bd2 {[%emt 0:08:23]} Nd4 {[%emt 0:08:22]} 15. Nd5 {[%emt 0:05:45]} Qd8 {[%emt 0:00:42]} 16. Nxf6+ {[%emt 0:02:09]} Bxf6 {[%emt 0:00:12]} 17. Bc3 {[%emt 0:01:21]} Qb6 {[%emt 0:06:11]} 18. Bd3 {[%emt 0:06:47]} Bg7 {[%emt 0:06:37]} 19. Nc2 {[%emt 0:03:19]} Nf3+ {[%emt 0:08:27]} 20. Qxf3 {[%emt 0:01:18]} Bxc3 {[%emt 0:00:06]} 21. Ne3 {[%emt 0:02:03]} Bd4 {[%emt 0:01:15]} 22. Nd5 {[%emt 0:12:30]} Qd8 {[%emt 0:00:07]} 23. Nc3 {[%emt 0:01:15]} Bc6 {[%emt 0:05:57]} 24. Qe2 {[%emt 0:01:58]} e6 {[%emt 0:09:13]} 25. Nb5 {[%emt 0:12:06]} Bb2 {[%emt 0:04:29]} 26. Rcd1 {[%emt 0:00:19]} Qe7 {[%emt 0:11:18]} 27. Qe3 {[%emt 0:01:03]} Rfd8 {[%emt 0:01:08]} 28. Be2 {[%emt 0:03:06]} Rac8 {[%emt 0:01:43]} 29. Na7 {[%emt 0:01:14]} Rc7 {[%emt 0:00:21]} 30. Nxc6 {[%emt 0:00:41]} bxc6 {[%emt 0:03:44]} 31. b4 {[%emt 0:01:42]} Rb8 {[%emt 0:03:21]} 32. b5 {[%emt 0:01:05]} e5 {[%emt 0:00:55]} 33. Qd3 {[%emt 0:01:27]} cxb5 {[%emt 0:05:01]} 34. cxb5 {[%emt 0:00:12]} Rb6 {[%emt 0:00:45]} 35. Qe3 {[%emt 0:02:38]} Rc5 {[%emt 0:01:06]} 36. Rd5 {[%emt 0:00:46]} Rxd5 {[%emt 0:02:59]} 37. Qxb6 {[%emt 0:01:33]} Rd2 {[%emt 0:00:36]} 38. Bc4 {[%emt 0:03:16]} Bd4 {[%emt 0:02:39]} 39. Qa5 {[%emt 0:01:01]} Rc2 {[%emt 0:01:12]} 40. Qa4 {[%emt 0:01:41]} Rc3 {[%emt 0:01:06]} 41. Bb3 {[%emt 0:07:57]} Qa7 {[%emt 0:05:29]} 42. Qxa7 {[%emt 0:00:34]} Bxa7 {[%emt 0:00:02]} 43. Rb1 {[%emt 0:01:15]} Kf8 {[%emt 0:00:35]} 44. Kf1 {[%emt 0:00:44]} Bb6 {[%emt 0:00:21]} 45. Ke2 {[%emt 0:00:48]} Ke7 {[%emt 0:00:16]} 46. Bd1 {[%emt 0:04:21]} f5 {[%emt 0:06:09]} 47. Rb3 {[%emt 0:00:33]} Rxb3 {[%emt 0:02:12]} 48. Bxb3 {[%emt 0:00:03]} fxe4 {[%emt 0:01:15]} 49. Bd5 {[%emt 0:00:29]} Kf6 {[%emt 0:00:12]} 50. Bxe4 {[%emt 0:00:47]} Ke6 {[%emt 0:00:08]} 51. f3 {[%emt 0:00:47]} d5 {[%emt 0:00:11]} 52. Bc2 {[%emt 0:00:10]} Kd6 {[%emt 0:00:16]} 53. Kd3 {[%emt 0:00:50]} Kc5 {[%emt 0:00:15]} 54. Bb3 {[%emt 0:00:04]} g5 {[%emt 0:00:46]} 55. g4 {[%emt 0:01:29]} h6 {[%emt 0:00:16]} 56. h3 {[%emt 0:00:04]} Ba5 {[%emt 0:00:42]} 57. Ba4 {[%emt 0:00:07]} Kb4 {[%emt 0:04:37]} 58. Bb3 {[%emt 0:00:10]} Kc5 {[%emt 0:00:08]} 59. Ba4 {[%emt 0:00:03]} Kb4 {[%emt 0:00:52]} 1/2-1/2

[Event "7th Washington Open 2018"]
[Site "Rockville"]
[Date "2018.08.11"]
[Round "2.9"]
[White "Macieja, Bartlomiej"]
[Black "Gerzhoy, Leonid"]
[Result "1-0"]
[ECO "A55"]
[WhiteElo "2528"]
[BlackElo "2407"]
[Annotator "ChessBase"]
[PlyCount "57"]
[EventDate "2018.08.11"]
[EventType "swiss"]
[EventCountry "USA"]
[SourceTitle "playchess.com"]
[Source "ChessBase"]
[SourceQuality "1"]
[TimeControl "40/5400+30:1200+30"]

1. Nf3 {[%emt 0:08:24]} Nf6 {[%emt 0:02:46]} 2. c4 {[%emt 0:00:04]} d6 {[%emt 0:00:35]} 3. d4 {[%emt 0:02:21]} Nbd7 {[%emt 0:01:17]} 4. Nc3 {[%emt 0:00:45]} e5 {[%emt 0:05:33]} 5. e4 {[%emt 0:00:02]} Be7 {[%emt 0:00:13]} 6. Be2 {[%emt 0:00:13]} O-O {[%emt 0:00:07]} 7. O-O {[%emt 0:00:03]} c6 {[%emt 0:00:19]} 8. Re1 {[%emt 0:02:49]} a6 {[%emt 0:05:24]} 9. a3 {[%emt 0:13:06]} b5 {[%emt 0:01:42]} 10. d5 {[%emt 0:06:46]} cxd5 {[%emt 0:02:22]} 11. cxd5 {[%emt 0:01:08]} Nb6 {[%emt 0:03:27]} 12. b3 {[%emt 0:24:50]} Qc7 {[%emt 0:03:10]} 13. Bd2 {[%emt 0:06:04]} Bd7 {[%emt 0:00:37]} 14. Bd3 {[%emt 0:05:33]} Rac8 {[%emt 0:02:24]} 15. Qe2 {[%emt 0:02:08]} Qb8 {[%emt 0:03:39]} 16. Na2 {[%emt 0:02:06]} Rc7 {[%emt 0:11:47]} 17. Nb4 {[%emt 0:07:29]} Qb7 {[%emt 0:06:28]} 18. a4 {[%emt 0:00:50]} bxa4 {[%emt 0:00:36]} 19. Nxa6 {[%emt 0:01:51]} Rcc8 {[%emt 0:01:21]} 20. Reb1 {[%emt 0:08:02]} axb3 {[%emt 0:07:42]} 21. Rxb3 {[%emt 0:00:07]} Bg4 {[%emt 0:00:27]} 22. Rab1 {[%emt 0:04:40]} Nfd7 {[%emt 0:00:15]} 23. h3 {[%emt 0:01:34]} Bxf3 {[%emt 0:02:41]} 24. Qxf3 {[%emt 0:00:01]} Bd8 {[%emt 0:02:05]} 25. Be3 {[%emt 0:00:59]} g6 {[%emt 0:04:27]} 26. Qe2 {[%emt 0:00:17]} f5 {[%emt 0:01:10]} 27. exf5 {[%emt 0:00:05]} gxf5 {[%emt 0:00:22]} 28. Bxf5 {[%emt 0:00:40]} Rxf5 {[%emt 0:01:38]} 29. Qg4+ {[%emt 0:00:01]} 1-0

[Event "7th Washington Open 2018"]
[Site "Rockville"]
[Date "2018.08.12"]
[Round "3.1"]
[White "Azarov, Sergei Nikolaevich"]
[Black "Chandra, Akshat"]
[Result "1/2-1/2"]
[ECO "C67"]
[WhiteElo "2574"]
[BlackElo "2487"]
[Annotator "ChessBase"]
[PlyCount "66"]
[EventDate "2018.08.11"]
[EventType "swiss"]
[EventCountry "USA"]
[SourceTitle "playchess.com"]
[Source "ChessBase"]
[SourceQuality "1"]
[TimeControl "40/5400+30:1200+30"]

1. e4 {[%emt 0:00:00]} e5 {[%emt 0:03:50]} 2. Nf3 {[%emt 0:00:00]} Nc6 {[%emt 0:00:19]} 3. Bb5 {[%emt 0:00:07]} Nf6 {[%emt 0:00:35]} 4. O-O {[%emt 0:00:39]} Nxe4 {[%emt 0:00:21]} 5. d4 {[%emt 0:00:20]} Nd6 {[%emt 0:00:17]} 6. Bxc6 {[%emt 0:00:54]} dxc6 {[%emt 0:00:13]} 7. dxe5 {[%emt 0:00:13]} Nf5 {[%emt 0:00:37]} 8. Qxd8+ {[%emt 0:00:14]} Kxd8 {[%emt 0:00:04]} 9. h3 {[%emt 0:00:26]} Bd7 {[%emt 0:01:36]} 10. Rd1 {[%emt 0:03:06]} Be7 {[%emt 0:00:37]} 11. Nc3 {[%emt 0:07:05]} Kc8 {[%emt 0:01:38]} 12. Bg5 {[%emt 0:06:37]} h6 {[%emt 0:04:47]} 13. Bxe7 {[%emt 0:01:44]} Nxe7 {[%emt 0:00:08]} 14. Rd2 {[%emt 0:28:34]} c5 {[%emt 0:06:29]} 15. Rad1 {[%emt 0:04:57]} Be6 {[%emt 0:13:15]} 16. Ne2 {[%emt 0:08:47]} Nc6 {[%emt 0:08:07]} 17. a3 {[%emt 0:05:43]} g5 {[%emt 0:02:56]} 18. g4 {[%emt 0:06:45]} h5 {[%emt 0:14:58]} 19. Nxg5 {[%emt 0:00:21]} hxg4 {[%emt 0:01:19]} 20. Nf4 {[%emt 0:00:57]} gxh3 {[%emt 0:22:29]} 21. Nfxe6 {[%emt 0:00:29]} fxe6 {[%emt 0:00:04]} 22. f4 {[%emt 0:00:10]} b6 {[%emt 0:03:03]} 23. Nxe6 {[%emt 0:01:09]} Rh6 {[%emt 0:05:45]} 24. Nxc7 {[%emt 0:13:07]} Kxc7 {[%emt 0:01:56]} 25. Rd7+ {[%emt 0:00:02]} Kc8 {[%emt 0:00:42]} 26. Rf7 {[%emt 0:00:26]} Rb8 {[%emt 0:05:55]} 27. Rdd7 {[%emt 0:01:00]} b5 {[%emt 0:00:47]} 28. Rc7+ {[%emt 0:03:24]} Kd8 {[%emt 0:00:01]} 29. Rfd7+ {[%emt 0:00:18]} Ke8 {[%emt 0:00:01]} 30. Rg7 {[%emt 0:00:14]} Kf8 {[%emt 0:01:20]} 31. Rcf7+ {[%emt 0:01:26]} Ke8 {[%emt 0:00:01]} 32. Rc7 {[%emt 0:00:11]} Kf8 {[%emt 0:00:04]} 33. Rcf7+ {[%emt 0:00:23]} Ke8 {[%emt 0:00:03]} 1/2-1/2